bitfinex/quotes_BTCUSD_20260103
["timestamp","ask_amount","ask_price","bid_price","bid_amount"]
[1767405858984,0.01108745,90192.0,90187.0,0.01108807]
[1767405859187,0.01119638,90198.0,90188.0,0.04923336]
[1767405859415,0.09050799,90197.0,90194.0,0.04913338]
[1767405859613,0.09050799,90197.0,90187.0,0.01108807]
[1767405859614,0.01108733,90193.0,90189.0,0.04923336]
[1767405859792,0.06655421,90197.0,90189.0,0.04923336]
[1767405859990,0.06652293,90195.0,90188.0,0.01108794]
[1767405860211,0.03504101,90194.0,90188.0,0.01108794]
[1767405860394,0.01108745,90192.0,90187.0,0.01108807]
[1767405860590,0.01108733,90193.0,90187.0,0.06032143]
[1767405860929,0.01108745,90192.0,90187.0,0.04923336]
[1767405861108,0.01108758,90191.0,90186.0,0.01108819]
[1767405861270,0.01108745,90192.0,90186.0,0.01108819]
[1767405861723,0.01108745,90192.0,90187.0,0.01108807]
[1767405861931,0.01108745,90192.0,90186.0,0.01108819]
[1767405862498,0.01108745,90192.0,90187.0,0.01108807]
[1767405862941,0.01108708,90195.0,90187.0,0.01108807]
[1767405862942,0.01108708,90195.0,90188.0,0.01108794]
[1767405863258,0.02395638,90194.0,90192.0,0.000999]
[1767405863456,0.03504359,90194.0,90189.0,0.01108782]
[1767405863655,0.02395638,90193.0,90188.0,0.01108794]
[1767405864108,0.03504371,90193.0,90187.0,0.01108807]
[1767405864326,0.01108733,90193.0,90187.0,0.01108807]
[1767405864557,0.000999,90187.0,90182.0,0.04934116]
[1767405864759,0.000999,90187.0,90184.0,0.01108844]
[1767405864978,0.0110877,90190.0,90184.0,0.01108844]
[1767405865400,0.0110877,90190.0,90185.0,0.01108831]
[1767405865618,0.01108782,90189.0,90183.0,0.01108856]
[1767405865837,0.01108782,90189.0,90182.0,0.0001078]
[1767405865838,0.000999,90185.0,90182.0,0.0666395]
[1767405866035,0.01039807,90184.0,90182.0,0.0666395]
[1767405866235,0.0110877,90190.0,90184.0,0.01108844]
[1767405866435,0.01039822,90189.0,90184.0,0.01108844]
[1767405866591,0.01039822,90188.0,90184.0,0.01108844]
[1767405866783,0.01039822,90187.0,90184.0,0.01108844]
[1767405866988,0.01039822,90186.0,90184.0,0.01108844]
[1767405867309,0.01039822,90185.0,90184.0,0.01108844]
[1767405867719,0.0110877,90190.0,90184.0,0.01108844]
[1767405867932,0.0110877,90190.0,90182.0,0.0666395]
[1767405867933,0.02148682,90189.0,90182.0,0.0001078]
[1767405868100,0.01108979,90173.0,90163.0,0.01109102]
[1767405868286,0.01109028,90169.0,90160.0,0.01109139]
[1767405868482,0.01109065,90166.0,90158.0,0.06517995]
[1767405868731,0.05904843,90173.0,90160.0,0.01109139]
[1767405868936,0.01109053,90167.0,90161.0,0.01109127]
[1767405869543,0.0110904,90168.0,90162.0,0.01109114]
[1767405870941,0.06654244,90168.0,90159.0,0.05545698]
[1767405871145,0.06654244,90168.0,90158.0,0.12063765]
[1767405871146,0.000999,90162.0,90158.0,0.12063765]
[1767405871459,0.0110909,90164.0,90159.0,0.01109151]
[1767405871659,0.0110909,90164.0,90158.0,0.12063765]
[1767405871873,0.01109065,90166.0,90160.0,0.01109139]
[1767405872077,0.01109065,90166.0,90161.0,0.01109127]
[1767405872279,0.01109065,90166.0,90160.0,0.01109139]
[1767405872529,0.01109065,90166.0,90161.0,0.01109127]
[1767405872706,0.01109065,90166.0,90159.0,0.01109151]
[1767405872707,0.01109077,90165.0,90159.0,0.01109151]
[1767405873361,0.01109065,90166.0,90160.0,0.01109139]
[1767405873550,0.01109065,90166.0,90161.0,0.01109127]
[1767405873708,0.0110909,90164.0,90158.0,0.01109163]
[1767405873921,0.0110909,90164.0,90159.0,0.01109151]
[1767405874248,0.0110909,90164.0,90158.0,0.01109163]
[1767405874791,0.01109065,90166.0,90160.0,0.01109139]
[1767405875447,0.01109065,90166.0,90161.0,0.01109127]
[1767405877086,0.0110904,90168.0,90161.0,0.01109127]
[1767405877294,0.01109065,90166.0,90161.0,0.01109127]
[1767405877676,0.01109065,90166.0,90160.0,0.01109139]
[1767405878074,0.01109065,90166.0,90161.0,0.01109127]
[1767405878271,0.01109053,90167.0,90161.0,0.01109127]
[1767405879035,0.01109065,90166.0,90160.0,0.01109139]
[1767405880274,0.0110904,90168.0,90160.0,0.01109139]
[1767405880421,0.01109053,90167.0,90161.0,0.01109127]
[1767405881025,0.01109053,90167.0,90160.0,0.01109139]
[1767405881574,0.01109077,90165.0,90160.0,0.01109139]
[1767405881876,0.01109065,90166.0,90160.0,0.01109139]
[1767405882240,0.01109077,90165.0,90159.0,0.01109151]
[1767405882662,0.2329091,90164.0,90157.0,0.00011834]
[1767405882866,0.01109163,90158.0,90152.0,0.01109237]
[1767405883075,0.01109151,90159.0,90153.0,0.01109225]
[1767405883290,0.01109262,90150.0,90142.0,0.0110936]
[1767405883508,0.01109213,90154.0,90144.0,0.01109336]
[1767405883713,0.01109225,90153.0,90146.0,0.01109311]
[1767405883885,0.011092,90155.0,90149.0,0.01109274]
[1767405884087,0.02221163,90158.0,90151.0,0.0110925]
[1767405884313,0.01109176,90157.0,90151.0,0.0110925]
[1767405884646,0.01109176,90157.0,90152.0,0.01109237]
[1767405884950,0.01109176,90157.0,90151.0,0.0110925]
[1767405885675,0.01109176,90157.0,90152.0,0.01109237]
[1767405886153,0.01109176,90157.0,90151.0,0.0110925]
[1767405886907,0.01109176,90157.0,90152.0,0.01109237]
[1767405887106,0.01109176,90157.0,90151.0,0.0110925]
[1767405887705,0.011092,90155.0,90148.0,0.01109286]
[1767405887908,0.011092,90155.0,90149.0,0.01109274]
[1767405888264,0.011092,90155.0,90149.0,0.01117262]
[1767405888561,0.06655162,90156.0,90150.0,0.01109262]
[1767405889666,0.06655162,90156.0,90149.0,0.01117262]
[1767405889667,0.011092,90155.0,90149.0,0.01117262]
[1767405890002,0.01112,90158.0,90151.0,0.0110925]
[1767405890486,0.02221163,90158.0,90153.0,0.01109225]
[1767405891459,0.02221163,90158.0,90151.0,0.0110925]
[1767405891460,0.01109176,90157.0,90151.0,0.0110925]
[1767405891882,0.01112,90158.0,90154.0,0.01109213]
[1767405892060,0.01112,90158.0,90153.0,0.01109225]
[1767405892541,0.01109188,90156.0,90150.0,0.01109262]
[1767405892741,0.01109176,90157.0,90151.0,0.0110925]
[1767405893299,0.01109176,90157.0,90149.0,0.01117262]
[1767405893499,0.01109188,90156.0,90150.0,0.01109262]
[1767405893746,0.01109176,90157.0,90149.0,0.01117262]
[1767405893925,0.01109176,90157.0,90152.0,0.01109237]
[1767405894127,0.01109176,90157.0,90151.0,0.0110925]
[1767405894301,0.01109176,90157.0,90150.0,0.01109262]
[1767405894511,0.01109188,90156.0,90151.0,0.0110925]
[1767405894915,0.01109188,90156.0,90150.0,0.01109262]
[1767405895775,0.01109188,90156.0,90151.0,0.0110925]
[1767405896627,0.000999,90151.0,90150.0,0.01109262]
[1767405897033,0.000999,90151.0,90149.0,7.988e-05]
[1767405897034,0.000999,90151.0,90149.0,0.01117262]
[1767405897331,0.011092,90155.0,90149.0,0.01117262]
[1767405897910,0.011092,90155.0,90150.0,0.01109262]
[1767405898315,0.01109188,90156.0,90150.0,0.01109262]
[1767405898882,0.011092,90155.0,90150.0,0.01109262]
[1767405899283,0.01109188,90156.0,90150.0,0.01109262]
[1767405899667,0.01109176,90157.0,90151.0,0.0110925]
[1767405900049,0.01109188,90156.0,90150.0,0.01109262]
[1767405900254,0.01109176,90157.0,90151.0,0.0110925]
[1767405900411,0.02221163,90158.0,90153.0,0.01109225]
[1767405900590,0.02221163,90158.0,90150.0,0.0665552]
[1767405900591,0.01109188,90156.0,90150.0,0.01109262]
[1767405900797,0.01109188,90156.0,90149.0,0.06663592]
[1767405900798,0.01109213,90154.0,90149.0,7.988e-05]
[1767405901035,0.011092,90155.0,90149.0,0.01117262]
[1767405901280,0.01109213,90154.0,90149.0,7.988e-05]
[1767405901479,0.01109225,90153.0,90149.0,7.988e-05]
[1767405901801,0.01109237,90152.0,90149.0,7.988e-05]
[1767405902184,0.01109237,90152.0,90144.0,0.06655965]
[1767405902340,0.0110925,90151.0,90144.0,0.06655965]
[1767405902546,0.01109237,90152.0,90147.0,0.01109299]
[1767405902750,0.01109237,90152.0,90146.0,0.01109311]
[1767405903356,0.011092,90155.0,90152.0,7.9e-05]
[1767405903779,0.05545903,90157.0,90149.0,0.01109274]
[1767405903979,0.01109213,90154.0,90148.0,0.01109286]
[1767405904180,0.011092,90155.0,90149.0,0.01109274]
[1767405904386,0.011092,90155.0,90148.0,0.01109286]
[1767405904700,0.011092,90155.0,90149.0,0.01109274]
[1767405905498,0.01109213,90154.0,90149.0,0.01109274]
[1767405905703,0.01109188,90156.0,90150.0,0.01109262]
[1767405906235,0.01109188,90156.0,90151.0,0.0110925]
[1767405907909,0.01109213,90154.0,90148.0,0.01109286]
[1767405908058,0.00092,90151.0,90148.0,0.01109286]
[1767405908571,0.01109213,90154.0,90149.0,0.01109274]
[1767405908801,0.01109213,90154.0,90148.0,0.01109286]
[1767405909002,0.011092,90155.0,90149.0,0.01109274]
[1767405909373,0.01109213,90154.0,90149.0,0.01109274]
[1767405909579,0.010163,90155.0,90149.0,0.01109274]
[1767405909790,0.01109188,90156.0,90150.0,0.01109262]
[1767405909984,0.01109188,90156.0,90151.0,0.0110925]
[1767405910193,0.01109188,90156.0,90150.0,0.01109262]
[1767405910711,0.011092,90155.0,90149.0,0.01109274]
[1767405910908,0.011092,90155.0,90150.0,0.01109262]
[1767405911248,0.011092,90155.0,90149.0,0.01109274]
[1767405911451,0.01109213,90154.0,90148.0,0.01109286]
[1767405911794,0.011092,90155.0,90149.0,0.01109274]
[1767405912030,0.011092,90155.0,90150.0,0.01109262]
[1767405912433,0.01109188,90156.0,90151.0,0.0110925]
[1767405912632,0.01039867,90155.0,90151.0,0.0110925]
[1767405912813,0.01109188,90156.0,90150.0,0.01109262]
[1767405913117,0.02149067,90155.0,90149.0,0.01109274]
[1767405913316,0.01039867,90154.0,90150.0,0.01109262]
[1767405913752,0.01039867,90154.0,90151.0,0.0110925]
[1767405913951,0.02221163,90158.0,90153.0,0.01109225]
[1767405914107,0.01112,90158.0,90153.0,0.01109225]
[1767405914313,0.02221163,90158.0,90152.0,0.01109237]
[1767405914575,0.02221163,90158.0,90153.0,0.00966519]
[1767405914703,0.02221163,90158.0,90152.0,0.01109237]
[1767405915106,0.02216811,90158.0,90152.0,0.01109237]
[1767405915318,0.02216811,90158.0,90153.0,0.01109225]
[1767405915731,0.02216811,90158.0,90152.0,0.01109237]
[1767405915929,0.02212673,90158.0,90152.0,0.01109237]
[1767405916130,0.02212673,90158.0,90153.0,0.01109225]
[1767405916405,0.02212673,90158.0,90152.0,0.01109237]
[1767405917116,0.05545555,90164.0,90151.0,0.06655446]
[1767405917117,0.04098301,90169.0,90162.0,0.01099116]
[1767405917337,0.02396141,90168.0,90164.0,0.05837682]
[1767405917533,0.02396141,90167.0,90165.0,0.01109077]
[1767405917765,0.02396141,90167.0,90163.0,0.01109102]
[1767405917969,0.000999,90163.0,90159.0,0.05837743]
[1767405918270,0.0110909,90164.0,90158.0,0.01109163]
[1767405918443,0.01109077,90165.0,90159.0,0.01109151]
[1767405918671,0.01109077,90165.0,90158.0,0.01109163]
[1767405918805,0.0110909,90164.0,90159.0,0.01109151]
[1767405919202,0.01109077,90165.0,90159.0,0.01109151]
[1767405919539,0.01104764,90164.0,90158.0,0.01109163]
[1767405920518,0.0110041,90164.0,90158.0,0.01109163]
[1767405920730,0.01109077,90165.0,90158.0,0.01109163]
[1767405920930,0.06654441,90166.0,90152.0,0.01109237]
[1767405920931,0.000999,90158.0,90152.0,0.01109237]
[1767405921129,0.000999,90158.0,90149.0,0.06655591]
[1767405921130,0.01109176,90157.0,90149.0,0.06655591]
[1767405921360,0.01109176,90157.0,90150.0,0.01109262]
[1767405921592,0.01109176,90157.0,90151.0,0.0110925]
[1767405921795,0.01109176,90157.0,90150.0,0.01109262]
[1767405921796,0.011092,90155.0,90150.0,0.01109262]
[1767405921918,0.01109176,90157.0,90151.0,0.0110925]
[1767405922118,0.01109176,90157.0,90152.0,0.01109237]
[1767405922656,0.01109176,90157.0,90151.0,0.0110925]
[1767405922992,0.011092,90155.0,90148.0,0.0665571]
[1767405923175,0.01109188,90156.0,90148.0,0.01109286]
[1767405923469,0.01109188,90156.0,90150.0,0.01109262]
[1767405923632,0.011092,90155.0,90149.0,0.01109274]
[1767405923829,0.01109188,90156.0,90150.0,0.01109262]
[1767405924235,0.011092,90155.0,90149.0,0.01109274]
[1767405924442,0.01109213,90154.0,90148.0,0.01109286]
[1767405924872,0.01109213,90154.0,90149.0,0.01109274]
[1767405925216,0.011092,90155.0,90149.0,0.01109274]
[1767405926455,0.011092,90155.0,90150.0,0.01109262]
[1767405927777,0.011092,90155.0,90149.0,0.01109274]
[1767405927975,0.011092,90155.0,90150.0,0.01109262]
[1767405928195,0.011092,90155.0,90149.0,0.01109274]
[1767405928375,0.011092,90155.0,90150.0,0.01109262]
[1767405929817,0.01109188,90156.0,90151.0,0.0110925]
[1767405930020,0.01109163,90158.0,90153.0,0.01109225]
[1767405930234,0.01109188,90156.0,90151.0,0.0110925]
[1767405930630,0.01109188,90156.0,90150.0,0.01109262]
[1767405931210,0.01109188,90156.0,90151.0,0.0110925]
[1767405931636,0.01109188,90156.0,90150.0,0.01109262]
[1767405931970,0.01109176,90157.0,90152.0,0.01109237]
[1767405932157,0.00969223,90156.0,90152.0,0.01109237]
[1767405932356,0.01109176,90157.0,90152.0,0.01109237]
[1767405932527,0.00969223,90156.0,90151.0,0.0110925]
[1767405932731,0.01109176,90157.0,90151.0,0.0110925]
[1767405932936,0.02078411,90156.0,90150.0,0.01109262]
[1767405933148,0.01109188,90156.0,90150.0,0.01109262]
[1767405933493,0.01109188,90156.0,90151.0,0.0110925]
[1767405933907,0.01109188,90156.0,90150.0,0.01109262]
[1767405934504,0.011092,90155.0,90149.0,0.01109274]
[1767405934915,0.011092,90155.0,90150.0,0.01109262]
[1767405935273,0.011092,90155.0,90149.0,0.01109274]
[1767405935481,0.01109188,90156.0,90151.0,0.0110925]
[1767405936131,0.01109188,90156.0,90150.0,0.01109262]
[1767405936693,0.01109176,90157.0,90151.0,0.0110925]
[1767405936917,0.00969232,90156.0,90152.0,0.01109237]
[1767405937241,0.01109163,90158.0,90152.0,0.01109237]
[1767405937242,0.01109176,90157.0,90152.0,0.01109237]
[1767405937414,0.02078422,90156.0,90151.0,0.0110925]
[1767405937609,0.01109188,90156.0,90151.0,0.0110925]
[1767405937970,0.01109176,90157.0,90151.0,0.0110925]
[1767405938141,0.06654877,90160.0,90153.0,0.05688696]
[1767405938341,0.01112,90161.0,90156.0,0.01109188]
[1767405938971,0.01112,90161.0,90158.0,0.01109163]
[1767405939772,0.01112,90161.0,90157.0,0.01109176]
[1767405939968,0.01112,90161.0,90158.0,0.01109163]
[1767405942309,0.01112,90161.0,90158.0,0.06654942]
[1767405942731,0.01112,90161.0,90159.0,0.05545714]
[1767405943208,0.01112,90161.0,90158.0,0.06654942]
[1767405949246,0.01112,90161.0,90158.0,0.01109163]
[1767405949386,0.01112,90161.0,90158.0,0.01009263]
[1767405949793,0.01112,90161.0,90158.0,0.01109163]
[1767405950125,0.00874992,90160.0,90158.0,0.01109163]
[1767405950339,0.01112,90161.0,90158.0,0.01109163]
[1767405950550,0.00874998,90160.0,90158.0,0.01109163]
[1767405950765,0.01112,90161.0,90158.0,0.01109163]
[1767405950911,0.00874998,90160.0,90158.0,0.01109163]
[1767405951107,0.01112,90161.0,90158.0,0.01109163]
[1767405951312,0.00874998,90160.0,90158.0,0.01109163]
[1767405951499,0.01112,90161.0,90158.0,0.01109163]
[1767405951710,0.00874991,90160.0,90158.0,0.01109163]
[1767405951913,0.01112,90161.0,90158.0,0.01109163]
[1767405952156,0.00874991,90160.0,90158.0,0.01109163]
[1767405952464,0.01112,90161.0,90158.0,0.01109163]
[1767405952665,0.00874989,90160.0,90158.0,0.01109163]
[1767405952826,0.01112,90161.0,90158.0,0.01109163]
[1767405953028,0.00874989,90160.0,90158.0,0.01109163]
[1767405953230,0.01112,90161.0,90158.0,0.01109163]
[1767405953448,0.0087499,90160.0,90158.0,0.01109163]
[1767405953757,0.01112,90161.0,90158.0,0.01109163]
[1767405954062,0.0087499,90160.0,90158.0,0.01109163]
[1767405954266,0.01112,90161.0,90158.0,0.01109163]
[1767405954425,0.00874993,90160.0,90157.0,0.01109176]
[1767405954632,0.01112,90161.0,90158.0,0.01109163]
[1767405954834,0.00874993,90160.0,90158.0,0.01109163]
[1767405955060,0.01112,90161.0,90158.0,0.01109163]
[1767405955230,0.00874993,90160.0,90158.0,0.01109163]
[1767405955435,0.01112,90161.0,90158.0,0.01109163]
[1767405955630,0.00875,90160.0,90158.0,0.01109163]
[1767405955836,0.01112,90161.0,90158.0,0.01109163]
[1767405956073,0.00875,90160.0,90158.0,0.01109163]
[1767405956265,0.01112,90161.0,90158.0,0.01109163]
[1767405956422,0.00875008,90160.0,90158.0,0.01109163]
[1767405956622,0.01112,90161.0,90158.0,0.01109163]
[1767405956855,0.00875008,90160.0,90158.0,0.01109163]
[1767405957060,0.01112,90161.0,90158.0,0.01109163]
[1767405957260,0.00875008,90160.0,90158.0,0.01109163]
[1767405957468,0.01112,90161.0,90158.0,0.01109163]
[1767405957671,0.0087502,90160.0,90158.0,0.01109163]
[1767405957850,0.01112,90161.0,90158.0,0.01109163]
[1767405958051,0.0087502,90160.0,90158.0,0.01109163]
[1767405958274,0.01112,90161.0,90158.0,0.01109163]
[1767405958477,0.00875034,90160.0,90158.0,0.01109163]
[1767405958786,0.01112,90161.0,90158.0,0.01109163]
[1767405958988,0.00875034,90160.0,90158.0,0.01109163]
[1767405959194,0.01112,90161.0,90158.0,0.01109163]
[1767405959398,0.00875034,90160.0,90158.0,0.01109163]
[1767405959597,0.01112,90161.0,90158.0,0.01109163]
[1767405959828,0.00775152,90160.0,90158.0,0.01109163]
[1767405959951,0.01112,90161.0,90158.0,0.01109163]
[1767405961107,0.02994329,90174.0,90163.0,0.01109102]
[1767405961260,0.0011412,90169.0,90166.0,0.05545286]
[1767405961455,0.0122612,90169.0,90166.0,0.05545286]
[1767405961658,0.0122612,90169.0,90167.0,0.01109053]
[1767405961866,0.0011412,90169.0,90167.0,0.01109053]
[1767405962724,0.0011412,90169.0,90165.0,0.06644458]
[1767405962929,0.000999,90167.0,90165.0,0.06644458]
[1767405963125,0.0011412,90169.0,90166.0,0.01109065]
[1767405966799,0.0011412,90169.0,90166.0,0.06654332]
[1767405967121,0.01112,90172.0,90166.0,0.06654332]
[1767405967122,0.01112,90172.0,90169.0,0.01109028]
[1767405967244,0.01107629,90172.0,90169.0,0.01109028]
[1767405968088,0.01107629,90172.0,90169.0,0.01080496]
[1767405968445,0.00691032,90172.0,90170.0,0.05545081]
[1767405968643,0.04604181,90180.0,90176.0,0.01108942]
[1767405968846,0.000999,90176.0,90174.0,0.01108967]
[1767405969119,0.00085587,90175.0,90174.0,0.01108967]
[1767405969327,0.00081336,90175.0,90173.0,0.01108979]
[1767405971394,0.00832472,90179.0,90176.0,0.05544712]
[1767405971601,0.00832472,90179.0,90176.0,0.06653654]
[1767405971797,8.779e-05,90182.0,90179.0,0.01108905]
[1767405972160,8.779e-05,90182.0,90179.0,0.06653417]
[1767405972361,8.779e-05,90182.0,90179.0,0.01009005]
[1767405972684,8.779e-05,90182.0,90178.0,0.01108917]
[1767405972885,8.779e-05,90182.0,90179.0,0.01108905]
[1767405973511,7.9e-07,90182.0,90179.0,0.01108905]
[1767405973723,7.9e-07,90182.0,90180.0,0.05544421]
[1767405973939,0.000152,90189.0,90186.0,0.01108819]
[1767405974158,0.01975198,90188.0,90186.0,0.01100119]
[1767405974350,0.01112,90188.0,90183.0,0.01108856]
[1767405974547,0.01112,90188.0,90184.0,0.01108844]
[1767405974766,0.01112,90188.0,90185.0,0.01108831]
[1767405976279,0.01112,90188.0,90185.0,0.06652934]
[1767405976498,0.01112,90188.0,90186.0,0.05544045]
[1767405976769,0.00766828,90188.0,90186.0,0.05486976]
[1767405978332,0.01112,90194.0,90191.0,0.01108758]
[1767405978541,0.000999,90191.0,90190.0,0.0110877]
[1767405978757,0.01112,90194.0,90191.0,0.01108758]
[1767405979816,0.01112,90194.0,90191.0,0.01008858]
[1767405980033,0.04604181,90212.0,90197.0,0.01108684]
[1767405980251,0.04604181,90212.0,90204.0,0.01108598]
[1767405980252,0.01112,90211.0,90204.0,0.01108598]
[1767405980482,0.01112,90211.0,90206.0,0.05542868]
[1767405981096,0.01112,90211.0,90204.0,0.01108598]
[1767405981445,0.02220512,90211.0,90204.0,0.01108598]
[1767405982627,0.01112,90211.0,90204.0,0.06651535]
[1767405983321,0.01112,90211.0,90205.0,0.05542884]
[1767405983621,0.01112,90211.0,90208.0,0.06651263]
[1767405984175,0.01112,90211.0,90208.0,0.06636063]
[1767405984374,0.01107649,90211.0,90208.0,0.01093349]
[1767405985935,0.01043744,90211.0,90208.0,0.01093349]
[1767405986221,0.01043744,90211.0,90209.0,0.05542634]
[1767405988143,0.000999,90209.0,90208.0,0.01093349]
[1767405988773,0.01043744,90211.0,90208.0,0.01093349]
[1767405989378,0.000999,90208.0,90205.0,0.06651486]
[1767405989797,0.01043744,90211.0,90207.0,0.01108561]
[1767405990201,0.01043744,90211.0,90208.0,0.01108549]
[1767405990454,0.01043744,90211.0,90207.0,0.01108561]
[1767405990631,0.01043744,90211.0,90208.0,0.01108549]
[1767405991000,0.01043744,90211.0,90207.0,0.01008661]
[1767405991956,0.01043744,90211.0,90208.0,0.01108549]
[1767405994616,0.02152256,90211.0,90205.0,0.06651486]
[1767405994754,0.01043744,90211.0,90206.0,0.01108573]
[1767405996275,0.02152256,90211.0,90205.0,0.01108585]
[1767405996858,0.02152256,90211.0,90206.0,0.01108573]
[1767405997058,0.01043744,90211.0,90206.0,0.01108573]
[1767405997493,0.02152256,90211.0,90205.0,0.01108585]
[1767405998052,0.02152256,90211.0,90206.0,0.01108573]
[1767405999185,0.01969657,90210.0,90205.0,0.01108585]
[1767405999391,0.02152256,90211.0,90205.0,0.01108585]
[1767405999591,0.00861133,90210.0,90206.0,0.01108573]
[1767405999824,0.07073313,90211.0,90203.0,0.0110861]
[1767406000068,0.01969657,90210.0,90204.0,0.01108598]
[1767406000264,0.00861418,90209.0,90205.0,0.01108585]
[1767406000470,0.07073313,90211.0,90206.0,0.01108573]
[1767406000688,0.00861418,90210.0,90206.0,0.01108573]
[1767406000892,0.00861418,90209.0,90206.0,0.01108573]
[1767406001128,0.07073313,90211.0,90206.0,0.01108573]
[1767406001329,0.01970296,90210.0,90204.0,0.01108598]
[1767406001536,0.00861772,90209.0,90205.0,0.01108585]
[1767406001715,0.00861772,90208.0,90205.0,0.01108585]
[1767406001915,0.00861772,90207.0,90205.0,0.01108585]
[1767406002112,0.07073313,90211.0,90205.0,0.01108585]
[1767406002113,0.07073313,90211.0,90207.0,0.000999]
[1767406002335,0.00862015,90210.0,90207.0,0.000999]
[1767406002536,0.00862015,90209.0,90205.0,0.01108585]
[1767406002737,0.00862015,90208.0,90204.0,0.01108598]
[1767406002941,0.00862015,90207.0,90204.0,0.01108598]
[1767406003259,0.00762115,90206.0,90203.0,0.06651609]
[1767406003553,0.07073313,90211.0,90204.0,0.01108598]
[1767406003755,0.07073313,90211.0,90206.0,0.01108573]
[1767406003897,0.07073313,90211.0,90205.0,0.01108585]
[1767406004430,0.07073313,90211.0,90206.0,0.01108573]
[1767406004613,0.01043744,90211.0,90207.0,0.01108561]
[1767406005435,0.01043744,90211.0,90206.0,0.01108573]
[1767406005633,0.01043744,90211.0,90207.0,0.01108561]
[1767406007131,0.01043744,90211.0,90206.0,0.01108573]
[1767406007348,0.02152256,90211.0,90206.0,0.01108573]
[1767406007951,0.02152256,90211.0,90205.0,0.01108585]
[1767406008399,0.02152256,90211.0,90206.0,0.01108573]
[1767406008600,0.02152256,90211.0,90205.0,0.01108585]
[1767406009822,0.02152256,90211.0,90206.0,0.01108573]
[1767406010259,0.02152256,90211.0,90205.0,0.01108585]
[1767406010602,0.01108524,90210.0,90204.0,0.01108598]
[1767406010799,0.02152256,90211.0,90205.0,0.01108585]
[1767406011228,0.01108524,90210.0,90205.0,0.01108585]
[1767406011636,0.02152256,90211.0,90205.0,0.01108585]
[1767406012287,0.02395061,90210.0,90206.0,0.01108573]
[1767406012489,0.03503585,90210.0,90205.0,0.01108585]
[1767406012821,0.01108524,90210.0,90204.0,0.01108598]
[1767406013026,0.02152256,90211.0,90205.0,0.01108585]
[1767406013166,0.02395513,90210.0,90205.0,0.01108585]
[1767406013829,0.04921057,90210.0,90203.0,0.04597899]
[1767406014026,0.05543343,90199.0,90187.0,0.05764528]
[1767406014226,0.01108721,90194.0,90187.0,0.05764528]
[1767406014433,0.01108708,90195.0,90189.0,0.01108782]
[1767406014751,0.01108708,90195.0,90188.0,0.01108794]
[1767406014752,0.01108721,90194.0,90188.0,0.01108794]
[1767406014880,0.01108708,90195.0,90189.0,0.04655721]
[1767406015286,0.01108696,90196.0,90189.0,0.04655721]
[1767406015509,0.01108696,90196.0,90190.0,0.0110877]
[1767406015937,0.01108708,90195.0,90189.0,0.05764503]
[1767406016117,0.01108733,90193.0,90190.0,0.04655721]
[1767406016319,0.01108745,90192.0,90187.0,0.05764528]
[1767406016486,0.01108745,90192.0,90187.0,0.04655721]
[1767406017146,0.01108721,90194.0,90188.0,0.01108794]
[1767406017382,0.01108708,90195.0,90188.0,0.01108794]
[1767406017553,0.01108684,90197.0,90190.0,0.0110877]
[1767406017755,0.01108696,90196.0,90190.0,0.0110877]
[1767406017910,0.01108708,90195.0,90189.0,0.01108782]
[1767406018115,0.01108696,90196.0,90190.0,0.05764491]
[1767406018318,0.01108696,90196.0,90190.0,0.04655721]
[1767406018541,0.01108696,90196.0,90190.0,0.05764491]
[1767406018741,0.01108708,90195.0,90190.0,0.04655721]
[1767406018944,0.01108721,90194.0,90190.0,0.04655721]
[1767406019285,0.01108696,90196.0,90190.0,0.04655721]
[1767406019406,0.01108696,90196.0,90190.0,0.05764491]
[1767406019607,0.01108708,90195.0,90190.0,0.04655721]
[1767406020571,0.01108721,90194.0,90190.0,0.04655721]
[1767406020774,0.01108708,90195.0,90190.0,0.04655721]
[1767406021106,0.01108733,90193.0,90190.0,0.04655721]
[1767406021252,0.01108684,90197.0,90181.0,0.01112]
[1767406021253,0.01108782,90189.0,90181.0,0.01112]
[1767406021439,0.01108819,90186.0,90181.0,0.01112]
[1767406021837,0.01108807,90187.0,90181.0,0.01112]
[1767406022303,0.01108782,90189.0,90183.0,0.01108856]
[1767406022483,0.0110877,90190.0,90187.0,0.000999]
[1767406022638,0.0110877,90190.0,90184.0,0.01108844]
[1767406023044,0.01108782,90189.0,90183.0,0.01108856]
[1767406023241,0.0110877,90190.0,90184.0,0.01108844]
[1767406024001,0.0110877,90190.0,90185.0,0.01108831]
[1767406024553,0.0110877,90190.0,90184.0,0.01108844]
[1767406025184,0.01108794,90188.0,90182.0,0.01108868]
[1767406025360,0.01108794,90188.0,90178.0,0.05544549]
[1767406025361,0.01108831,90185.0,90179.0,0.01108905]
[1767406025564,0.01108819,90186.0,90180.0,0.01108893]
[1767406025744,0.06652786,90188.0,90182.0,0.01108868]
[1767406026111,0.01108819,90186.0,90181.0,0.01108881]
[1767406026302,0.01108807,90187.0,90182.0,0.01108868]
[1767406026838,0.01108807,90187.0,90181.0,0.01108881]
[1767406027048,0.01108794,90188.0,90182.0,0.01108868]
[1767406027251,0.01108782,90189.0,90183.0,0.01104456]
[1767406027456,0.01108794,90188.0,90182.0,0.01108868]
[1767406027597,0.01108782,90189.0,90183.0,0.01108856]
[1767406028296,0.01108782,90189.0,90184.0,0.01108844]
[1767406028996,0.01108782,90189.0,90183.0,0.01108856]
[1767406029331,0.01108794,90188.0,90182.0,0.01108868]
[1767406029576,0.01108807,90187.0,90182.0,0.01108868]
[1767406029718,0.01108807,90187.0,90181.0,0.01108881]
[1767406029940,0.01108831,90185.0,90177.0,0.06653547]
[1767406030141,0.01108831,90185.0,90175.0,0.1137343]
[1767406030142,0.01108868,90182.0,90175.0,0.11373456]
[1767406030340,0.01108868,90182.0,90176.0,0.0576422]
[1767406030527,0.01108881,90181.0,90175.0,0.00064471]
[1767406030726,0.01108893,90180.0,90175.0,0.04719749]
[1767406030927,0.06653251,90182.0,90176.0,0.01108942]
[1767406030928,0.01108868,90182.0,90176.0,0.01108942]
[1767406031106,0.06653098,90184.0,90177.0,0.0110893]
[1767406031306,0.06653098,90184.0,90179.0,0.01108905]
[1767406031307,0.01108844,90184.0,90179.0,0.01108905]
[1767406031510,0.01108844,90184.0,90177.0,0.01114917]
[1767406031511,0.01108844,90184.0,90178.0,0.01108917]
[1767406032031,0.01108819,90186.0,90180.0,0.01108893]
[1767406032231,0.06652656,90190.0,90182.0,0.04655278]
[1767406032232,0.06652672,90190.0,90182.0,0.04655278]
[1767406032446,0.06652672,90190.0,90180.0,0.06653357]
[1767406032447,0.01108684,90197.0,90191.0,0.01108758]
[1767406032656,0.01112,90196.0,90190.0,0.04655278]
[1767406032881,0.01112,90197.0,90194.0,0.04655278]
[1767406033091,0.01112,90197.0,90194.0,0.05763999]
[1767406033440,0.01112,90197.0,90192.0,0.05764023]
[1767406033860,0.01112,90197.0,90193.0,0.01108733]
[1767406034043,0.01112,90197.0,90192.0,0.05764023]
[1767406034322,0.0110877,90190.0,90181.0,0.05764159]
[1767406034543,0.0110877,90190.0,90184.0,0.05764122]